[Event "26th Hit Open-A 2022"]
[Site "Nova Gorica"]
[Date "2022.09.18"]
[Round "4.7"]
[White "Gschiel, Alexander"]
[Black "Davies, Nigel R"]
[Result "0-1"]
[ECO "E07"]
[WhiteElo "2196"]
[BlackElo "2420"]
[Annotator "ChessBase"]
[PlyCount "104"]
[EventDate "2022.09.16"]
[EventType "swiss"]
[EventCountry "SLO"]
[SourceTitle "playchess.com"]
[Source "ChessBase"]
[SourceQuality "1"]
[TimeControl "5400+30"]

1. d4 {[%emt 0:00:03]} e6 {[%emt 0:05:16]} 2. c4 {[%emt 0:00:22]} Nf6 {[%emt 0:00:25]} 3. Nf3 {[%emt 0:00:12]} d5 {[%emt 0:00:09]} 4. g3 {[%emt 0:00:15]} Be7 {[%emt 0:00:10]} 5. Bg2 {[%emt 0:00:13]} O-O {[%emt 0:00:06]} 6. O-O {[%emt 0:00:06]} c6 {[%emt 0:00:26]} 7. Nc3 {[%emt 0:01:01]} Nbd7 {[%emt 0:03:40]} 8. Qd3 {[%emt 0:01:13]} b6 {[%emt 0:00:32]} 9. e4 {[%emt 0:01:01]} Ba6 {[%emt 0:00:10]} 10. b3 {[%emt 0:00:15]} dxc4 {[%emt 0:07:05]} 11. bxc4 {[%emt 0:02:26]} e5 {[%emt 0:00:08]} 12. Rd1 {[%emt 0:11:05]} exd4 {[%emt 0:00:52]} 13. Qxd4 {[%emt 0:00:06]} Bc5 {[%emt 0:16:07]} 14. Qd3 {[%emt 0:13:12]} Ng4 {[%emt 0:02:59]} 15. Rd2 {[%emt 0:11:21]} Nde5 {[%emt 0:01:02]} 16. Nxe5 {[%emt 0:00:40]} Nxe5 {[%emt 0:00:06]} 17. Qc2 {[%emt 0:00:41]} Qf6 {[%emt 0:00:59]} 18. Bb2 {[%emt 0:13:33]} Nxc4 {[%emt 0:12:55]} 19. Na4 {[%emt 0:01:12]} Nxb2 {[%emt 0:01:08]} 20. Nxc5 {[%emt 0:00:05]} Nc4 {[%emt 0:00:28]} 21. Nxa6 {[%emt 0:07:33]} Nxd2 {[%emt 0:00:10]} 22. Rc1 {[%emt 0:03:28]} Nf3+ {[%emt 0:00:56]} 23. Bxf3 {[%emt 0:00:05]} Qxf3 {[%emt 0:00:06]} 24. Qxc6 {[%emt 0:00:05]} Rad8 {[%emt 0:03:12]} 25. Nb4 {[%emt 0:00:39]} Rd2 {[%emt 0:01:06]} 26. Rf1 {[%emt 0:00:05]} Re2 {[%emt 0:01:47]} 27. Nd5 {[%emt 0:04:43]} Qxe4 {[%emt 0:00:13]} 28. Qd7 {[%emt 0:00:16]} Qe6 {[%emt 0:03:04]} 29. Qb7 {[%emt 0:01:00]} Re5 {[%emt 0:00:47]} 30. Nf4 {[%emt 0:01:14]} Qxa2 {[%emt 0:01:01]} 31. Rc1 {[%emt 0:01:32]} Rfe8 {[%emt 0:03:15]} 32. Qd7 {[%emt 0:02:18]} Qa3 {[%emt 0:06:14]} 33. Rc8 {[%emt 0:02:44]} Rxc8 {[%emt 0:00:58]} 34. Qxc8+ {[%emt 0:00:04]} Qf8 {[%emt 0:00:04]} 35. Qc7 {[%emt 0:00:06]} Re1+ {[%emt 0:00:42]} 36. Kg2 {[%emt 0:00:02]} Qa8+ {[%emt 0:00:11]} 37. f3 {[%emt 0:00:52]} Re8 {[%emt 0:00:29]} 38. Qc3 {[%emt 0:01:08]} Qc8 {[%emt 0:00:45]} 39. Qd4 {[%emt 0:01:06]} Rd8 {[%emt 0:00:25]} 40. Qe3 {[%emt 0:00:46]} Qc2+ {[%emt 0:00:40]} 41. Kh3 {[%emt 0:00:10]} Qc5 {[%emt 0:01:35]} 42. Qe4 {[%emt 0:00:46]} a5 {[%emt 0:00:19]} 43. g4 {[%emt 0:00:50]} Qd4 {[%emt 0:00:54]} 44. Qf5 {[%emt 0:00:32]} a4 {[%emt 0:01:36]} 45. Nh5 {[%emt 0:02:55]} Qd5 {[%emt 0:02:12]} 46. Qc2 {[%emt 0:03:08]} Qxf3+ {[%emt 0:01:00]} 47. Ng3 {[%emt 0:00:48]} a3 {[%emt 0:00:52]} 48. g5 {[%emt 0:00:03]} b5 {[%emt 0:00:50]} 49. Kh4 {[%emt 0:01:49]} Qf4+ {[%emt 0:01:16]} 50. Kh3 {[%emt 0:00:18]} Qc4 {[%emt 0:00:13]} 51. Qb1 {[%emt 0:01:22]} b4 {[%emt 0:01:41]} 52. Qf5 {[%emt 0:02:24]} Qc8 {[%emt 0:00:14]} 0-1

[Event "26th Hit Open-A 2022"]
[Site "Nova Gorica"]
[Date "2022.09.18"]
[Round "4.8"]
[White "Leitner, Gerald"]
[Black "Holtel, Jasper"]
[Result "0-1"]
[ECO "D94"]
[WhiteElo "2181"]
[BlackElo "2406"]
[Annotator "ChessBase"]
[PlyCount "70"]
[EventDate "2022.09.16"]
[EventType "swiss"]
[EventCountry "SLO"]
[SourceTitle "playchess.com"]
[Source "ChessBase"]
[SourceQuality "1"]
[TimeControl "5400+30"]

1. d4 {[%emt 0:02:15]} Nf6 {[%emt 0:00:13]} 2. Nf3 {[%emt 0:00:15]} g6 {[%emt 0:00:09]} 3. c4 {[%emt 0:00:09]} Bg7 {[%emt 0:00:07]} 4. Nc3 {[%emt 0:00:03]} d5 {[%emt 0:00:12]} 5. e3 {[%emt 0:00:01]} O-O {[%emt 0:00:13]} 6. Bd2 {[%emt 0:00:01]} c5 {[%emt 0:00:40]} 7. dxc5 {[%emt 0:00:07]} Na6 {[%emt 0:01:24]} 8. cxd5 {[%emt 0:00:03]} Nxc5 {[%emt 0:00:26]} 9. Bc4 {[%emt 0:00:02]} Qb6 {[%emt 0:08:46]} 10. O-O {[%emt 0:14:07]} Nfe4 {[%emt 0:05:36]} 11. Qc1 {[%emt 0:14:12]} Bf5 {[%emt 0:06:46]} 12. Nd4 {[%emt 0:09:32]} Rac8 {[%emt 0:02:43]} 13. Nxf5 {[%emt 0:14:06]} gxf5 {[%emt 0:02:33]} 14. Rb1 {[%emt 0:02:50]} Nd6 {[%emt 0:10:50]} 15. Be2 {[%emt 0:00:35]} Nce4 {[%emt 0:00:31]} 16. Be1 {[%emt 0:08:00]} Qc5 {[%emt 0:08:24]} 17. Qd1 {[%emt 0:05:24]} Bxc3 {[%emt 0:01:07]} 18. Bxc3 {[%emt 0:00:16]} Nxc3 {[%emt 0:00:12]} 19. bxc3 {[%emt 0:00:01]} Qxc3 {[%emt 0:00:16]} 20. Qa4 {[%emt 0:02:08]} Qc2 {[%emt 0:02:22]} 21. Qh4 {[%emt 0:03:40]} Qxe2 {[%emt 0:01:45]} 22. Qg5+ {[%emt 0:00:10]} Kh8 {[%emt 0:00:10]} 23. Qxe7 {[%emt 0:00:04]} Rfd8 {[%emt 0:06:43]} 24. Qf6+ {[%emt 0:02:42]} Kg8 {[%emt 0:00:34]} 25. Qg5+ {[%emt 0:00:11]} Kf8 {[%emt 0:00:50]} 26. Rb4 {[%emt 0:06:06]} Qxa2 {[%emt 0:06:35]} 27. e4 {[%emt 0:05:35]} fxe4 {[%emt 0:07:30]} 28. Re1 {[%emt 0:01:28]} Qa5 {[%emt 0:05:05]} 29. Reb1 {[%emt 0:05:23]} b6 {[%emt 0:01:40]} 30. f3 {[%emt 0:01:19]} Qc5+ {[%emt 0:00:47]} 31. Kh1 {[%emt 0:00:02]} e3 {[%emt 0:00:32]} 32. h4 {[%emt 0:00:42]} e2 {[%emt 0:03:10]} 33. Kh2 {[%emt 0:00:56]} Qc3 {[%emt 0:01:44]} 34. Rg4 {[%emt 0:01:56]} e1=Q {[%emt 0:00:46]} 35. Rxe1 {[%emt 0:00:09]} Qxe1 {[%emt 0:00:26]} 0-1

[Event "26th Hit Open-A 2022"]
[Site "Nova Gorica"]
[Date "2022.09.18"]
[Round "4.9"]
[White "Schreiner, Peter"]
[Black "Gregoric, Andraz"]
[Result "1/2-1/2"]
[ECO "E06"]
[WhiteElo "2405"]
[BlackElo "2182"]
[Annotator "ChessBase"]
[PlyCount "51"]
[EventDate "2022.09.16"]
[EventType "swiss"]
[EventCountry "SLO"]
[SourceTitle "playchess.com"]
[Source "ChessBase"]
[SourceQuality "1"]
[TimeControl "5400+30"]

1. Nf3 {[%emt 0:02:51]} Nf6 {[%emt 0:00:06]} 2. g3 {[%emt 0:00:07]} e6 {[%emt 0:00:36]} 3. Bg2 {[%emt 0:00:24]} d5 {[%emt 0:00:19]} 4. O-O {[%emt 0:00:18]} c5 {[%emt 0:00:11]} 5. c4 {[%emt 0:02:16]} Nc6 {[%emt 0:02:33]} 6. cxd5 {[%emt 0:03:59]} Nxd5 {[%emt 0:03:27]} 7. d4 {[%emt 0:11:59]} Be7 {[%emt 0:05:29]} 8. dxc5 {[%emt 0:04:17]} Bxc5 {[%emt 0:02:10]} 9. a3 {[%emt 0:00:19]} a5 {[%emt 0:10:23]} 10. e4 {[%emt 0:02:21]} Nf6 {[%emt 0:01:36]} 11. Qxd8+ {[%emt 0:15:07]} Kxd8 {[%emt 0:02:49]} 12. Nc3 {[%emt 0:03:38]} h6 {[%emt 0:02:24]} 13. e5 {[%emt 0:13:25]} Nd7 {[%emt 0:07:48]} 14. Ne4 {[%emt 0:10:15]} Be7 {[%emt 0:08:43]} 15. Rd1 {[%emt 0:03:55]} Kc7 {[%emt 0:05:49]} 16. h4 {[%emt 0:01:29]} Ndxe5 {[%emt 0:10:28]} 17. Nxe5 {[%emt 0:01:45]} Nxe5 {[%emt 0:00:13]} 18. Bf4 {[%emt 0:00:24]} f6 {[%emt 0:00:04]} 19. Rac1+ {[%emt 0:01:08]} Kb8 {[%emt 0:00:36]} 20. Nc5 {[%emt 0:03:10]} Rd8 {[%emt 0:02:19]} 21. Rxd8 {[%emt 0:09:05]} Bxd8 {[%emt 0:00:02]} 22. Bxb7 {[%emt 0:05:17]} Bxb7 {[%emt 0:00:42]} 23. Nd7+ {[%emt 0:00:03]} Ka7 {[%emt 0:00:05]} 24. Be3+ {[%emt 0:00:04]} Ka6 {[%emt 0:00:04]} 25. Nc5+ {[%emt 0:00:19]} Ka7 {[%emt 0:04:16]} 26. Nd7+ {[%emt 0:00:29]} 1/2-1/2

[Event "26th Hit Open-A 2022"]
[Site "Nova Gorica"]
[Date "2022.09.18"]
[Round "4.10"]
[White "Devnani Kush"]
[Black "Fercec, Nenad"]
[Result "1/2-1/2"]
[ECO "E16"]
[WhiteElo "2095"]
[BlackElo "2403"]
[Annotator "ChessBase"]
[PlyCount "56"]
[EventDate "2022.09.16"]
[EventType "swiss"]
[EventCountry "SLO"]
[SourceTitle "playchess.com"]
[Source "ChessBase"]
[SourceQuality "1"]
[TimeControl "5400+30"]

1. d4 {[%emt 0:03:05]} Nf6 {[%emt 0:00:08]} 2. c4 {[%emt 0:00:37]} e6 {[%emt 0:00:12]} 3. Nf3 {[%emt 0:00:04]} b6 {[%emt 0:00:05]} 4. g3 {[%emt 0:00:05]} Bb7 {[%emt 0:00:05]} 5. Bg2 {[%emt 0:00:07]} g6 {[%emt 0:00:06]} 6. Nc3 {[%emt 0:00:11]} Bg7 {[%emt 0:00:07]} 7. Qc2 {[%emt 0:00:27]} c5 {[%emt 0:23:44]} 8. dxc5 {[%emt 0:24:22]} bxc5 {[%emt 0:00:13]} 9. O-O {[%emt 0:00:05]} O-O {[%emt 0:01:15]} 10. Rd1 {[%emt 0:05:24]} Nc6 {[%emt 0:06:49]} 11. Bf4 {[%emt 0:12:01]} Na5 {[%emt 0:25:22]} 12. Nb5 {[%emt 0:17:57]} Be4 {[%emt 0:04:21]} 13. Qc1 {[%emt 0:03:57]} a6 {[%emt 0:05:57]} 14. Nd6 {[%emt 0:03:06]} Bc6 {[%emt 0:00:26]} 15. Be5 {[%emt 0:05:19]} Nb7 {[%emt 0:01:24]} 16. Qc2 {[%emt 0:07:06]} Qb6 {[%emt 0:00:52]} 17. Qb3 {[%emt 0:03:45]} Qa7 {[%emt 0:02:28]} 18. Qa3 {[%emt 0:02:26]} Rfd8 {[%emt 0:02:24]} 19. Nxb7 {[%emt 0:04:05]} Bxb7 {[%emt 0:00:53]} 20. Rac1 {[%emt 0:01:10]} Rac8 {[%emt 0:00:28]} 21. Bd6 {[%emt 0:01:34]} Ba8 {[%emt 0:02:20]} 22. Nd2 {[%emt 0:00:52]} Bxg2 {[%emt 0:01:18]} 23. Kxg2 {[%emt 0:00:02]} Rc6 {[%emt 0:00:29]} 24. Be7 {[%emt 0:01:55]} Re8 {[%emt 0:04:13]} 25. Bxf6 {[%emt 0:00:05]} Bxf6 {[%emt 0:00:05]} 26. Ne4 {[%emt 0:00:02]} Bg7 {[%emt 0:00:27]} 27. Rc2 {[%emt 0:01:55]} f5 {[%emt 0:02:21]} 28. Nc3 {[%emt 0:01:17]} h5 {[%emt 0:05:43]} 1/2-1/2

[Event "26th Hit Open-A 2022"]
[Site "Nova Gorica"]
[Date "2022.09.18"]
[Round "4.11"]
[White "Willow, Jonah B"]
[Black "Guid, Matej"]
[Result "1/2-1/2"]
[ECO "C10"]
[WhiteElo "2385"]
[BlackElo "2292"]
[Annotator "ChessBase"]
[PlyCount "64"]
[EventDate "2022.09.16"]
[EventType "swiss"]
[EventCountry "SLO"]
[SourceTitle "playchess.com"]
[Source "ChessBase"]
[SourceQuality "1"]
[TimeControl "5400+30"]

1. e4 {[%emt 0:00:01]} e6 {[%emt 0:02:03]} 2. d4 {[%emt 0:00:06]} d5 {[%emt 0:00:19]} 3. Nc3 {[%emt 0:00:13]} dxe4 {[%emt 0:00:08]} 4. Nxe4 {[%emt 0:00:05]} Nd7 {[%emt 0:00:04]} 5. Nf3 {[%emt 0:00:05]} Ngf6 {[%emt 0:00:07]} 6. Nxf6+ {[%emt 0:00:05]} Nxf6 {[%emt 0:00:08]} 7. g3 {[%emt 0:00:17]} b6 {[%emt 0:03:12]} 8. Bb5+ {[%emt 0:00:23]} Bd7 {[%emt 0:02:40]} 9. a4 {[%emt 0:00:11]} a6 {[%emt 0:07:56]} 10. Be2 {[%emt 0:00:34]} Bc6 {[%emt 0:01:10]} 11. O-O {[%emt 0:00:07]} Bd6 {[%emt 0:02:35]} 12. Ne5 {[%emt 0:00:11]} Bxe5 {[%emt 0:03:05]} 13. dxe5 {[%emt 0:00:06]} Qd5 {[%emt 0:00:19]} 14. Qxd5 {[%emt 0:01:30]} Nxd5 {[%emt 0:00:08]} 15. Rd1 {[%emt 0:09:41]} a5 {[%emt 0:02:07]} 16. Rd4 {[%emt 0:05:25]} O-O-O {[%emt 0:03:04]} 17. Bg5 {[%emt 0:07:31]} Rd7 {[%emt 0:02:07]} 18. Rad1 {[%emt 0:01:52]} h6 {[%emt 0:04:18]} 19. Bc1 {[%emt 0:01:37]} Rhd8 {[%emt 0:00:52]} 20. Rg4 {[%emt 0:46:30]} Nc3 {[%emt 0:25:47]} 21. Ba6+ {[%emt 0:06:29]} Kb8 {[%emt 0:06:37]} 22. Rxd7 {[%emt 0:01:10]} Rxd7 {[%emt 0:01:07]} 23. Bd3 {[%emt 0:00:15]} Nxa4 {[%emt 0:05:16]} 24. Rxg7 {[%emt 0:00:33]} Bf3 {[%emt 0:03:46]} 25. g4 {[%emt 0:02:22]} Nc5 {[%emt 0:03:34]} 26. Bxh6 {[%emt 0:02:46]} Nxd3 {[%emt 0:02:36]} 27. cxd3 {[%emt 0:00:02]} Rxd3 {[%emt 0:01:15]} 28. h3 {[%emt 0:00:09]} Be4 {[%emt 0:09:39]} 29. Kh2 {[%emt 0:00:37]} Rf3 {[%emt 0:04:06]} 30. Be3 {[%emt 0:00:27]} b5 {[%emt 0:00:57]} 31. h4 {[%emt 0:02:36]} a4 {[%emt 0:00:45]} 32. Bc5 {[%emt 0:01:38]} b4 {[%emt 0:00:46]} 1/2-1/2

[Event "26th Hit Open-A 2022"]
[Site "Nova Gorica"]
[Date "2022.09.18"]
[Round "4.12"]
[White "Drazic, Sinisa"]
[Black "Verbin, Valentina"]
[Result "1-0"]
[ECO "D00"]
[WhiteElo "2327"]
[BlackElo "2049"]
[Annotator "ChessBase"]
[PlyCount "87"]
[EventDate "2022.09.16"]
[EventType "swiss"]
[EventCountry "SLO"]
[SourceTitle "playchess.com"]
[Source "ChessBase"]
[SourceQuality "1"]
[TimeControl "5400+30"]

1. d4 {[%emt 0:05:33]} Nf6 {[%emt 0:00:45]} 2. c3 {[%emt 0:00:26]} d5 {[%emt 0:00:56]} 3. Bg5 {[%emt 0:00:07]} c5 {[%emt 0:06:05]} 4. Bxf6 {[%emt 0:01:44]} gxf6 {[%emt 0:00:52]} 5. e3 {[%emt 0:00:06]} cxd4 {[%emt 0:06:16]} 6. exd4 {[%emt 0:02:26]} Nc6 {[%emt 0:02:17]} 7. Nd2 {[%emt 0:00:27]} Bg7 {[%emt 0:01:59]} 8. Ne2 {[%emt 0:00:30]} f5 {[%emt 0:03:47]} 9. Nf4 {[%emt 0:02:14]} e6 {[%emt 0:05:28]} 10. Bd3 {[%emt 0:02:45]} Bd7 {[%emt 0:03:54]} 11. Nf3 {[%emt 0:02:03]} Bh6 {[%emt 0:09:52]} 12. Nh5 {[%emt 0:01:16]} Qe7 {[%emt 0:04:16]} 13. Qe2 {[%emt 0:03:11]} O-O-O {[%emt 0:03:06]} 14. g3 {[%emt 0:01:28]} f6 {[%emt 0:03:13]} 15. Nh4 {[%emt 0:09:55]} Qf7 {[%emt 0:06:59]} 16. Qf3 {[%emt 0:06:29]} Kb8 {[%emt 0:03:30]} 17. O-O {[%emt 0:00:21]} Bg5 {[%emt 0:13:51]} 18. Rfe1 {[%emt 0:02:20]} Rhg8 {[%emt 0:04:32]} 19. Ng2 {[%emt 0:02:53]} e5 {[%emt 0:00:31]} 20. Qd1 {[%emt 0:00:16]} f4 {[%emt 0:03:16]} 21. Be2 {[%emt 0:03:45]} Bh3 {[%emt 0:03:17]} 22. Kh1 {[%emt 0:03:12]} Bxg2+ {[%emt 0:02:01]} 23. Kxg2 {[%emt 0:00:08]} e4 {[%emt 0:00:06]} 24. gxf4 {[%emt 0:07:59]} Bxf4+ {[%emt 0:00:30]} 25. Kh1 {[%emt 0:00:07]} Bc7 {[%emt 0:04:16]} 26. Rg1 {[%emt 0:02:18]} Qe6 {[%emt 0:04:08]} 27. f4 {[%emt 0:10:40]} exf3 {[%emt 0:00:32]} 28. Bxf3 {[%emt 0:00:05]} Qh3 {[%emt 0:00:05]} 29. Qe2 {[%emt 0:00:04]} Ka8 {[%emt 0:03:34]} 30. Rg2 {[%emt 0:14:00]} Rge8 {[%emt 0:01:05]} 31. Qf2 {[%emt 0:01:46]} f5 {[%emt 0:00:08]} 32. Nf6 {[%emt 0:00:45]} Re4 {[%emt 0:00:49]} 33. Rf1 {[%emt 0:00:51]} Rf4 {[%emt 0:00:31]} 34. Qg3 {[%emt 0:01:01]} Qh6 {[%emt 0:00:27]} 35. Qg7 {[%emt 0:01:27]} Qh3 {[%emt 0:00:25]} 36. Qg3 {[%emt 0:02:02]} Qh6 {[%emt 0:00:04]} 37. Qg5 {[%emt 0:00:35]} Qh3 {[%emt 0:00:20]} 38. Be2 {[%emt 0:05:03]} Rxf1+ {[%emt 0:00:23]} 39. Bxf1 {[%emt 0:00:01]} Bxh2 {[%emt 0:01:07]} 40. Rg1 {[%emt 0:00:13]} Bf4+ {[%emt 0:00:37]} 41. Bxh3 {[%emt 0:00:03]} Bxg5 {[%emt 0:00:19]} 42. Rxg5 {[%emt 0:00:01]} Ne7 {[%emt 0:00:20]} 43. Rg7 {[%emt 0:00:08]} Ng6 {[%emt 0:00:25]} 44. Bxf5 {[%emt 0:00:18]} 1-0

[Event "26th Hit Open-A 2022"]
[Site "Nova Gorica"]
[Date "2022.09.18"]
[Round "4.13"]
[White "Subelj, Jan"]
[Black "Hercog, Nusa"]
[Result "1-0"]
[ECO "B10"]
[WhiteElo "2505"]
[BlackElo "2019"]
[Annotator "ChessBase"]
[PlyCount "71"]
[EventDate "2022.09.16"]
[EventType "swiss"]
[EventCountry "SLO"]
[SourceTitle "playchess.com"]
[Source "ChessBase"]
[SourceQuality "1"]
[TimeControl "5400+30"]

1. e4 {[%emt 0:00:04]} c6 {[%emt 0:00:10]} 2. Nf3 {[%emt 0:00:34]} d5 {[%emt 0:00:10]} 3. d3 {[%emt 0:00:26]} g6 {[%emt 0:01:11]} 4. e5 {[%emt 0:00:35]} Bg7 {[%emt 0:00:48]} 5. d4 {[%emt 0:00:21]} e6 {[%emt 0:05:01]} 6. h4 {[%emt 0:09:12]} h5 {[%emt 0:07:43]} 7. c4 {[%emt 0:03:25]} Nd7 {[%emt 0:09:43]} 8. Nc3 {[%emt 0:01:33]} Nh6 {[%emt 0:03:51]} 9. Bg5 {[%emt 0:02:10]} Qb6 {[%emt 0:03:10]} 10. c5 {[%emt 0:10:21]} Qc7 {[%emt 0:02:59]} 11. Rc1 {[%emt 0:00:14]} Nf5 {[%emt 0:01:02]} 12. Bd3 {[%emt 0:01:14]} Nf8 {[%emt 0:05:58]} 13. Qd2 {[%emt 0:02:58]} Nh7 {[%emt 0:01:58]} 14. Bf4 {[%emt 0:02:09]} Qe7 {[%emt 0:01:26]} 15. g3 {[%emt 0:01:13]} Bd7 {[%emt 0:01:11]} 16. b4 {[%emt 0:01:01]} a6 {[%emt 0:02:36]} 17. Na4 {[%emt 0:05:49]} Rd8 {[%emt 0:03:09]} 18. Nb6 {[%emt 0:00:46]} Bf8 {[%emt 0:03:16]} 19. a4 {[%emt 0:03:22]} Bg7 {[%emt 0:01:25]} 20. O-O {[%emt 0:04:47]} O-O {[%emt 0:01:03]} 21. Rfe1 {[%emt 0:02:06]} Rfe8 {[%emt 0:02:09]} 22. Bg5 {[%emt 0:04:17]} Nxg5 {[%emt 0:00:30]} 23. hxg5 {[%emt 0:00:08]} Bf8 {[%emt 0:05:46]} 24. Qf4 {[%emt 0:00:24]} Bc8 {[%emt 0:02:51]} 25. g4 {[%emt 0:00:53]} Ng7 {[%emt 0:00:20]} 26. Kg2 {[%emt 0:00:26]} Qc7 {[%emt 0:01:44]} 27. Rh1 {[%emt 0:00:12]} Be7 {[%emt 0:02:08]} 28. Rh3 {[%emt 0:00:20]} Rf8 {[%emt 0:05:32]} 29. Qg3 {[%emt 0:01:25]} Bd7 {[%emt 0:01:58]} 30. Rch1 {[%emt 0:00:21]} Be8 {[%emt 0:01:16]} 31. gxh5 {[%emt 0:00:17]} Nxh5 {[%emt 0:00:55]} 32. Rxh5 {[%emt 0:00:08]} gxh5 {[%emt 0:00:06]} 33. Rxh5 {[%emt 0:00:07]} Bd7 {[%emt 0:01:51]} 34. Rh8+ {[%emt 0:00:18]} Kg7 {[%emt 0:00:07]} 35. Rh7+ {[%emt 0:00:06]} Kg8 {[%emt 0:00:05]} 36. Qh4 {[%emt 0:00:10]} 1-0

[Event "26th Hit Open-A 2022"]
[Site "Nova Gorica"]
[Date "2022.09.18"]
[Round "4.14"]
[White "Acimovic, Sergej"]
[Black "Thybo, Jesper Sondergaard"]
[Result "0-1"]
[ECO "A85"]
[WhiteElo "2114"]
[BlackElo "2516"]
[Annotator "ChessBase"]
[PlyCount "134"]
[EventDate "2022.09.16"]
[EventType "swiss"]
[EventCountry "SLO"]
[SourceTitle "playchess.com"]
[Source "ChessBase"]
[SourceQuality "1"]
[TimeControl "5400+30"]

1. d4 {[%emt 0:01:14]} f5 {[%emt 0:03:03]} 2. c4 {[%emt 0:01:19]} Nf6 {[%emt 0:00:34]} 3. Nc3 {[%emt 0:00:33]} e6 {[%emt 0:01:09]} 4. e3 {[%emt 0:02:55]} Bb4 {[%emt 0:02:24]} 5. Bd3 {[%emt 0:01:26]} Bxc3+ {[%emt 0:06:08]} 6. bxc3 {[%emt 0:00:06]} b6 {[%emt 0:00:13]} 7. Ba3 {[%emt 0:04:39]} Bb7 {[%emt 0:05:00]} 8. Ne2 {[%emt 0:05:31]} d6 {[%emt 0:08:09]} 9. O-O {[%emt 0:03:20]} c5 {[%emt 0:18:39]} 10. d5 {[%emt 0:10:50]} Qe7 {[%emt 0:02:57]} 11. dxe6 {[%emt 0:13:11]} Qxe6 {[%emt 0:01:51]} 12. Nf4 {[%emt 0:04:44]} Qe5 {[%emt 0:01:13]} 13. Qc2 {[%emt 0:01:30]} Be4 {[%emt 0:05:04]} 14. Rad1 {[%emt 0:05:06]} O-O {[%emt 0:04:08]} 15. f3 {[%emt 0:06:34]} Bxd3 {[%emt 0:01:30]} 16. Qxd3 {[%emt 0:00:11]} Nc6 {[%emt 0:03:59]} 17. Nd5 {[%emt 0:01:27]} Na5 {[%emt 0:05:27]} 18. Bc1 {[%emt 0:00:29]} Kh8 {[%emt 0:00:47]} 19. Rfe1 {[%emt 0:00:22]} Rae8 {[%emt 0:01:12]} 20. Re2 {[%emt 0:04:17]} Rf7 {[%emt 0:02:00]} 21. Rde1 {[%emt 0:09:08]} Nd7 {[%emt 0:01:45]} 22. Nc7 {[%emt 0:06:00]} Rd8 {[%emt 0:00:54]} 23. e4 {[%emt 0:01:17]} f4 {[%emt 0:00:39]} 24. Rd1 {[%emt 0:00:13]} Nf8 {[%emt 0:02:35]} 25. Nd5 {[%emt 0:01:23]} g5 {[%emt 0:01:56]} 26. Kh1 {[%emt 0:01:26]} Ng6 {[%emt 0:00:16]} 27. Rf2 {[%emt 0:05:29]} Qe6 {[%emt 0:03:45]} 28. Rg1 {[%emt 0:00:10]} Ne5 {[%emt 0:00:32]} 29. Qe2 {[%emt 0:00:08]} Re8 {[%emt 0:05:29]} 30. g3 {[%emt 0:01:29]} g4 {[%emt 0:02:02]} 31. Nxf4 {[%emt 0:04:02]} gxf3 {[%emt 0:02:22]} 32. Rxf3 {[%emt 0:02:03]} Qxc4 {[%emt 0:00:18]} 33. Rf2 {[%emt 0:00:12]} Qxe2 {[%emt 0:00:43]} 34. Rxe2 {[%emt 0:00:02]} Nac4 {[%emt 0:00:36]} 35. Kg2 {[%emt 0:01:15]} b5 {[%emt 0:01:53]} 36. h4 {[%emt 0:00:19]} a5 {[%emt 0:00:26]} 37. Kh3 {[%emt 0:00:23]} Nd7 {[%emt 0:01:59]} 38. Nd5 {[%emt 0:02:36]} Nde5 {[%emt 0:00:57]} 39. Bf4 {[%emt 0:00:34]} Nd3 {[%emt 0:01:20]} 40. Rd1 {[%emt 0:01:22]} Nde5 {[%emt 0:01:33]} 41. Ne3 {[%emt 0:00:27]} Nxe3 {[%emt 0:00:48]} 42. Rxe3 {[%emt 0:00:02]} Nc4 {[%emt 0:00:11]} 43. Re2 {[%emt 0:00:46]} Rf6 {[%emt 0:00:20]} 44. Kg4 {[%emt 0:01:17]} Kg8 {[%emt 0:02:06]} 45. Rd5 {[%emt 0:00:15]} Kf7 {[%emt 0:00:34]} 46. h5 {[%emt 0:00:44]} Ke6 {[%emt 0:00:49]} 47. Rg5 {[%emt 0:00:22]} Rff8 {[%emt 0:00:38]} 48. h6 {[%emt 0:00:32]} Rg8 {[%emt 0:00:29]} 49. Kh5 {[%emt 0:00:33]} Rxg5+ {[%emt 0:00:15]} 50. Kxg5 {[%emt 0:00:02]} b4 {[%emt 0:00:37]} 51. cxb4 {[%emt 0:00:14]} axb4 {[%emt 0:00:00]} 52. g4 {[%emt 0:00:29]} Rf8 {[%emt 0:00:55]} 53. Rc2 {[%emt 0:00:39]} Ne5 {[%emt 0:00:32]} 54. Bxe5 {[%emt 0:00:32]} Kxe5 {[%emt 0:00:04]} 55. Rd2 {[%emt 0:00:07]} Rg8+ {[%emt 0:00:14]} 56. Kh5 {[%emt 0:00:02]} Rg6 {[%emt 0:00:17]} 57. g5 {[%emt 0:01:19]} c4 {[%emt 0:01:52]} 58. Rf2 {[%emt 0:00:26]} c3 {[%emt 0:00:50]} 59. Rf7 {[%emt 0:00:33]} Rg8 {[%emt 0:00:19]} 60. Rxh7 {[%emt 0:01:17]} Rc8 {[%emt 0:00:04]} 61. Rf7 {[%emt 0:00:03]} c2 {[%emt 0:00:13]} 62. Rf1 {[%emt 0:00:04]} c1=Q {[%emt 0:00:12]} 63. Rxc1 {[%emt 0:00:01]} Rxc1 {[%emt 0:00:05]} 64. Kg6 {[%emt 0:00:28]} Kf4 {[%emt 0:01:35]} 65. Kf6 {[%emt 0:01:08]} Rh1 {[%emt 0:00:08]} 66. Kg6 {[%emt 0:00:01]} Rh2 {[%emt 0:00:24]} 67. Kf6 {[%emt 0:00:06]} Rh5 {[%emt 0:00:11]} 0-1